bitfinex-derivatives/quotes_SOLF0:USTF0_20260213
["timestamp","ask_amount","ask_price","bid_price","bid_amount"]
[1770977754926,11.2389,80.139,80.095,11.2449]
[1770977755624,105.0,80.145,80.095,11.2449]
[1770977755820,8.14706898,80.14,80.087,11.2462]
[1770977756131,99.64,80.139,80.087,11.2462]
[1770977756424,117.78,80.138,80.087,11.2462]
[1770977756624,8.14706898,80.14,80.087,11.2462]
[1770977756827,8.14706898,80.14,80.058,22.5003]
[1770977756828,8.14706898,80.17,80.101,7.12338041]
[1770977757130,99.64,80.169,80.101,7.12338041]
[1770977757330,107.98,80.168,80.101,7.12338041]
[1770977757535,107.98,80.168,80.108,7.12338041]
[1770977757929,8.14706898,80.17,80.108,7.12338041]
[1770977757930,117.94,80.169,80.108,7.12338041]
[1770977758228,160.19094423,80.2,80.118,7.12338041]
[1770977758434,8.14706898,80.18,80.118,7.12338041]
[1770977759337,118.08,80.175,80.118,7.12338041]
[1770977759631,8.14706898,80.16,80.105,7.0914074]
[1770977759836,99.64,80.159,80.105,7.0914074]
[1770977760139,11.2362,80.158,80.106,11.2434]
[1770977760632,11.2376,80.149,80.1,11.2442]
[1770977761435,8.14706898,80.15,80.1,11.2442]
[1770977761737,99.62,80.157,80.112,11.2426]
[1770977761936,22.4613,80.198,80.101,7.13637328]
[1770977761937,8.14706898,80.17,80.101,7.13637328]
[1770977762127,8.14706898,80.18,80.101,7.13637328]
[1770977762326,118.24,80.179,80.101,7.13637328]
[1770977762530,118.24,80.179,80.111,7.13637328]
[1770977763134,129.8534,80.178,80.126,11.2406]
[1770977763637,11.2334,80.178,80.132,11.2397]
[1770977763843,118.82,80.178,80.132,11.2397]
[1770977764138,8.14706898,80.18,80.132,11.2397]
[1770977765034,8.14706898,80.17,80.124,11.2408]
[1770977765837,119.02,80.173,80.124,11.2408]
[1770977766347,8.14706898,80.17,80.11,7.34491443]
[1770977766937,11.2351,80.166,80.115,11.2421]
[1770977767140,11.2351,80.166,80.115,18.62049713]
[1770977767744,11.2351,80.166,80.117,18.62029713]
[1770977768747,130.6551,80.166,80.119,11.2416]
[1770977769248,11.2336,80.177,80.127,11.2405]
[1770977769644,119.56,80.176,80.127,11.2405]
[1770977770549,8.14706898,80.17,80.12,18.62577516]
[1770977770738,119.7,80.169,80.12,18.62577516]
[1770977770939,119.7,80.169,80.126,11.2406]
[1770977772153,130.9348,80.169,80.121,11.2413]
[1770977772740,120.06,80.168,80.121,11.2413]
[1770977772954,3.41848656,80.15,80.112,11.2426]
[1770977773249,3.41848656,80.15,80.108,7.38096456]
[1770977773641,3.41848656,80.14,80.095,7.38096456]
[1770977773842,3.41848656,80.13,80.09,3.41848656]
[1770977774046,99.6,80.13,80.091,7.38096456]
[1770977774248,3.41848656,80.14,80.091,7.38096456]
[1770977774649,99.6,80.139,80.091,7.38096456]
[1770977774849,99.6,80.139,80.096,11.2448]
[1770977775246,120.38,80.139,80.096,11.2448]
[1770977775551,120.4,80.138,80.096,11.2448]
[1770977775850,3.41848656,80.15,80.103,7.190726]
[1770977776049,3.41848656,80.15,80.111,7.190726]
[1770977776646,3.41848656,80.16,80.111,7.190726]
[1770977776950,120.64,80.159,80.111,7.190726]
[1770977777751,120.64,80.159,80.118,11.2418]
[1770977777951,120.64,80.159,80.111,7.190726]
[1770977778147,3.41848656,80.16,80.111,7.190726]
[1770977778351,120.82,80.159,80.111,7.190726]
[1770977778751,120.82,80.159,80.123,11.241]
[1770977779152,3.41848656,80.15,80.111,7.190726]
[1770977779655,11.2367,80.155,80.111,7.190726]
[1770977779855,11.2367,80.155,80.08,22.97669342]
[1770977779856,3.41848656,80.13,80.088,15.37732622]
[1770977780046,121.06,80.129,80.085,7.14348726]
[1770977780245,121.14,80.128,80.085,7.14348726]
[1770977780452,121.14,80.128,80.061,22.97669342]
[1770977780453,3.41848656,80.1,80.061,7.14348726]
[1770977780854,8.14759277,80.12,80.061,7.14348726]
[1770977781055,8.14759277,80.16,80.056,225.30630267]
[1770977781056,8.14759277,80.13,80.073,7.17519679]
[1770977781256,99.6,80.129,80.073,7.17519679]
[1770977781654,37.49,80.187,80.073,7.17519679]
[1770977781853,22.4571,80.213,80.115,7.17519679]
[1770977782163,22.4571,80.213,80.08,8.14759277]
[1770977782164,8.14759277,80.15,80.084,7.17519679]
[1770977782455,168.338537,80.2,80.088,11.2459]
[1770977782456,8.14759277,80.14,80.088,11.2459]
[1770977782656,8.14759277,80.14,80.084,7.17519679]
[1770977783450,8.14759277,80.12,80.062,15.37732622]
[1770977783658,8.14759277,80.12,80.059,7.15455497]
[1770977783659,99.6,80.119,80.059,7.15455497]
[1770977783861,8.14759277,80.12,80.061,7.15455497]
[1770977784061,106.66,80.119,80.061,7.15455497]
[1770977784759,8.14759277,80.11,80.061,7.15455497]
[1770977785261,8.14759277,80.11,80.056,225.30630267]
[1770977785464,8.14759277,80.1,80.047,7.08932071]
[1770977785657,99.62,80.099,80.047,7.08932071]
[1770977785956,120.82,80.098,80.047,7.08932071]
[1770977786154,11.2431,80.109,80.049,18.34072071]
[1770977786356,121.52,80.108,80.049,7.08932071]
[1770977786866,121.58,80.107,80.051,7.10115848]
[1770977787262,8.14759277,80.1,80.044,15.37732622]
[1770977787566,8.14759277,80.09,80.037,7.10115848]
[1770977787770,8.14759277,80.08,80.037,7.10115848]
[1770977787964,99.62,80.079,80.037,7.10115848]
[1770977788467,99.62,80.079,80.038,11.253]
[1770977789163,99.62,80.079,80.037,7.10115848]
[1770977789365,120.78,80.084,80.037,7.10115848]
[1770977790067,19.39329277,80.09,80.037,7.10115848]
[1770977790263,8.14759277,80.09,80.041,11.2526]
[1770977790471,99.62,80.089,80.041,11.2526]
[1770977790658,120.74,80.088,80.037,7.10115848]
[1770977791269,120.74,80.088,80.038,11.2529]
[1770977791868,122.22,80.094,80.041,7.10000116]
[1770977792072,122.28,80.093,80.041,7.10000116]
[1770977792470,8.14759277,80.1,80.042,7.10000116]
[1770977792770,99.64,80.099,80.042,7.10000116]
[1770977792970,8.14759277,80.1,80.042,7.10000116]
[1770977793465,8.14759277,80.1,80.057,11.2502]
[1770977793674,99.64,80.099,80.057,18.35017267]
[1770977794467,99.64,80.099,80.064,11.2494]
[1770977795275,99.64,80.099,80.057,7.09997267]
[1770977796475,11.2424,80.114,80.057,7.09997267]
[1770977796678,11.2427,80.112,80.057,7.09997267]
[1770977796975,122.64,80.111,80.057,7.09997267]
[1770977797181,11.244,80.103,80.057,7.09997267]
[1770977797368,122.64,80.111,80.057,7.09997267]
[1770977797676,8.14759277,80.11,80.057,7.09997267]
[1770977798376,8.14759277,80.11,80.064,11.2493]
[1770977799082,22.4725,80.158,80.04,8.14759277]
[1770977799083,11.63147774,80.212,80.071,7.09319326]
[1770977799270,8.14759277,80.17,80.101,7.09319326]
[1770977799474,99.64,80.169,80.114,11.2423]
[1770977799673,99.64,80.169,80.101,7.09319326]
[1770977799674,8.14759277,80.16,80.101,7.09319326]
[1770977799869,8.14759277,80.14,80.08,7.09319326]
[1770977800071,99.66,80.139,80.08,7.09319326]
[1770977800774,99.66,80.139,80.086,11.2463]
[1770977801481,11.2396,80.134,80.08,7.09319326]
[1770977802075,8.14759277,80.15,80.091,6.99292738]
[1770977802270,121.64,80.149,80.091,6.99292738]
[1770977803184,8.14759277,80.15,80.091,6.99292738]
[1770977803384,99.64,80.149,80.091,6.99292738]
[1770977803885,99.64,80.149,80.093,18.22878829]
[1770977804384,8.14759277,80.15,80.093,18.22878829]
[1770977804586,106.72,80.149,80.093,18.22878829]
[1770977804778,11.2377,80.148,80.093,6.98348829]
[1770977805384,99.64,80.147,80.094,11.245]
[1770977805581,8.14759277,80.13,80.066,11.46720233]
[1770977805786,8.14759277,80.13,80.065,6.98252691]
[1770977805985,8.14759277,80.13,80.066,18.44972924]
[1770977806283,99.64,80.129,80.083,6.98252691]
[1770977806586,104.54,80.148,80.096,6.97868877]
[1770977806789,104.54,80.15,80.096,6.97868877]
[1770977807090,11.2377,80.148,80.096,6.97868877]
[1770977808279,122.68,80.147,80.096,6.97868877]
[1770977809795,11.238,80.145,80.096,6.97868877]
[1770977809990,11.238,80.145,80.098,6.94012233]
[1770977810195,124.52,80.144,80.098,6.94012233]
[1770977810395,8.14759277,80.17,80.108,11.46720233]
[1770977810597,124.54,80.169,80.11,6.94012233]
[1770977811200,8.14759277,80.17,80.11,6.94012233]
[1770977811491,124.74,80.169,80.11,6.94012233]
[1770977811696,124.74,80.168,80.115,6.93933661]
[1770977812096,8.14759277,80.16,80.115,6.93933661]
[1770977812494,124.86,80.159,80.115,6.93933661]
[1770977812699,124.86,80.159,80.119,11.2417]
[1770977812894,160.19094423,80.2,80.12,6.9462533]
[1770977813094,8.13869736,80.18,80.12,6.9462533]
[1770977813296,11.2322,80.187,80.14,11.2387]
[1770977813501,125.04,80.179,80.127,11.46720233]
[1770977813801,125.04,80.179,80.124,11.46720233]
[1770977814297,125.12,80.178,80.123,18.41345563]
[1770977814495,8.13869736,80.18,80.123,18.41345563]
[1770977814689,11.2337,80.176,80.129,11.2402]
[1770977815901,125.3,80.175,80.129,11.2402]
[1770977816292,125.38,80.174,80.129,11.2402]
[1770977816991,11.2303,80.201,80.154,11.2367]
[1770977817194,107.73869736,80.2,80.144,6.92573366]
[1770977817399,99.6,80.199,80.144,6.92573366]
[1770977818401,8.13869736,80.2,80.144,6.92573366]
[1770977818402,106.66,80.198,80.144,6.92573366]
[1770977818602,113.66,80.197,80.152,11.2369]
[1770977818994,8.13869736,80.19,80.152,11.2369]
[1770977819604,113.66,80.197,80.152,11.2369]
[1770977819806,8.13869736,80.24,80.144,6.92573366]
[1770977820000,8.13869736,80.24,80.151,6.88908151]
[1770977820001,8.13869736,80.22,80.151,6.88908151]
[1770977820195,8.13869736,80.21,80.151,6.88908151]
[1770977820399,8.13869736,80.2,80.161,11.2358]
[1770977820702,8.13869736,80.19,80.136,6.89544873]
[1770977820898,3.41595111,80.18,80.136,6.89544873]
[1770977821298,3.41595111,80.17,80.131,6.89544873]
[1770977822799,3.41595111,80.17,80.136,11.2392]
[1770977823004,3.41595111,80.17,80.131,6.89544873]
[1770977823607,100.28,80.174,80.133,11.2396]
[1770977824100,11.2326,80.184,80.14,3.41595111]
[1770977824305,3.41595111,80.18,80.141,6.90641135]
[1770977824805,3.41595111,80.16,80.127,6.91253404]
[1770977827803,22.4573,80.212,80.11,3.41595111]
[1770977827804,3.41595111,80.15,80.115,11.2421]
[1770977828805,22.4573,80.212,80.1,10.2666962]
[1770977828806,3.41595111,80.14,80.1,10.2666962]
[1770977829011,3.41595111,80.14,80.101,6.85074509]
[1770977829804,3.41595111,80.14,80.103,18.09454509]
[1770977830705,126.8,80.142,80.104,6.79519802]
[1770977831210,3.41595111,80.15,80.104,6.79519802]
[1770977831411,127.0,80.149,80.104,6.79519802]
[1770977831812,3.41595111,80.15,80.104,6.79519802]
[1770977831813,127.06,80.148,80.105,11.2435]
[1770977832317,127.14,80.147,80.105,11.2435]
[1770977832517,127.14,80.147,80.105,18.03869802]
[1770977832826,3.41595111,80.14,80.105,6.79519802]
[1770977833513,127.32,80.139,80.105,6.79519802]
[1770977834710,127.32,80.139,80.106,11.2434]
[1770977835112,127.32,80.139,80.105,6.79519802]
[1770977835420,3.41595111,80.13,80.095,6.80034914]
[1770977836008,3.41595111,80.13,80.102,11.2439]
[1770977836411,127.32,80.139,80.095,6.80034914]
[1770977836412,3.41595111,80.12,80.097,11.46720233]
[1770977836719,3.41595111,80.12,80.095,6.80034914]
[1770977837106,3.41595111,80.12,80.088,11.46720233]
[1770977837107,3.41595111,80.12,80.086,11.46720233]
[1770977837413,3.41595111,80.11,80.082,6.8005007]
[1770977837719,3.41595111,80.1,80.073,11.46720233]
[1770977837912,3.41595111,80.1,80.068,6.8005007]
[1770977837913,3.41595111,80.1,80.072,11.46720233]
[1770977838111,107.36,80.127,80.09,3.41595111]
[1770977838309,107.36,80.127,80.09,10.21645181]
[1770977838507,3.41595111,80.12,80.09,6.8005007]
[1770977839113,3.41595111,80.15,80.1,10.23284683]
[1770977839313,99.6,80.149,80.111,6.81689572]
[1770977839509,101.98,80.148,80.111,6.81689572]
[1770977839717,104.34,80.147,80.112,18.05939572]
[1770977840112,104.34,80.147,31.242,16.68433073]
[1770977840113,3.41595111,80.13,80.097,6.81689572]
[1770977841121,3.41595111,80.13,80.097,18.28409805]
[1770977841422,101.98,80.134,80.099,6.82194836]
[1770977841619,101.98,80.134,80.102,11.46720233]
[1770977842221,120.4,80.137,80.103,11.46720233]
[1770977842614,3.41595111,80.13,80.103,11.46720233]
[1770977842811,3.41595111,80.12,80.085,11.46720233]
[1770977843224,3.41595111,80.12,80.086,11.46720233]
[1770977843720,3.41595111,80.12,80.085,11.46720233]
[1770977844121,100.26,80.121,80.085,11.46720233]
[1770977844324,3.41595111,80.11,80.079,11.46720233]
[1770977844522,3.41595111,80.11,80.074,11.46720233]
[1770977845214,22.4743,80.152,80.08,3.41595111]
[1770977845415,3.41595111,80.11,80.081,11.46720233]
[1770977845618,3.41595111,80.11,80.072,11.46720233]
[1770977846026,3.41595111,80.11,80.077,11.46720233]
[1770977846327,99.6,80.112,80.076,11.46720233]
[1770977846723,99.6,80.112,80.08,11.2471]
[1770977848830,126.22,80.116,80.08,11.2471]
[1770977849930,11.2403,80.129,80.081,6.74342422]
[1770977850131,129.32,80.12,80.085,6.74342422]
[1770977850721,129.42,80.121,80.085,6.74342422]
[1770977851524,3.41595111,80.15,80.118,11.46720233]
[1770977851730,3.41595111,80.15,80.11,10.17056448]
[1770977852222,3.41595111,80.15,80.11,6.75461337]
[1770977852829,3.41595111,80.15,80.111,11.2427]
[1770977854632,103.03595111,80.15,80.111,11.2427]
[1770977855232,99.62,80.15,80.111,11.2427]
[1770977855731,11.2361,80.159,80.111,11.2427]
[1770977855935,113.12,80.158,80.111,11.2427]
[1770977858337,113.12,80.158,80.117,11.2418]
[1770977860534,22.4559,80.218,80.13,3.41595111]
[1770977860735,3.41595111,80.18,80.131,6.86293127]
[1770977860937,126.48,80.179,80.131,6.86293127]
[1770977861741,137.7133,80.179,80.139,11.2389]
[1770977861938,11.2333,80.179,80.139,11.2389]
[1770977862134,130.82,80.178,80.139,11.2389]
[1770977863142,131.0,80.191,80.15,10.30188008]
[1770977863342,131.04,80.19,80.15,10.30188008]
[1770977863841,131.14,80.19,80.159,11.2359]
[1770977865142,131.14,80.19,80.165,11.2351]
[1770977865344,131.14,80.19,80.16,3.41595111]
[1770977865544,131.14,80.19,80.151,6.89934589]
[1770977865949,134.55595111,80.19,80.151,6.89934589]
[1770977867243,3.41595111,80.19,80.151,6.89934589]
[1770977867445,99.58,80.189,80.157,11.2363]
[1770977867742,99.58,80.188,80.157,11.2363]
[1770977867944,99.58,80.188,80.15,3.41595111]
[1770977868743,99.58,80.188,80.151,11.2371]
[1770977868945,3.41595111,80.19,80.151,11.2371]
[1770977869250,113.08,80.187,80.151,11.2371]
[1770977870143,3.41595111,80.2,80.151,11.2371]
[1770977870344,99.58,80.199,80.151,11.2371]
[1770977870742,11.2308,80.197,80.151,11.2371]
[1770977871750,115.34,80.196,80.153,11.2368]
[1770977871945,3.41595111,80.19,80.153,11.2368]
[1770977872146,3.41595111,80.19,80.14,3.41595111]
[1770977872454,3.41595111,80.19,80.15,3.41595111]
[1770977872857,132.42,80.189,80.153,6.92329354]
[1770977873046,132.44,80.188,80.153,6.92329354]
[1770977875453,132.88,80.187,80.153,6.92329354]
[1770977876258,132.88,80.187,80.15,3.41446438]
[1770977879263,3.41446438,80.17,80.13,3.41446438]
[1770977879461,133.58,80.169,80.127,6.96635788]
[1770977879664,3.41446438,80.15,80.116,11.46720233]
[1770977879856,3.41446438,80.15,80.11,3.41446438]
[1770977880052,3.41446438,80.15,80.107,6.96635788]
[1770977880357,3.41446438,80.16,80.121,11.2413]
[1770977880557,3.41446438,80.17,80.121,6.97646459]
[1770977880758,99.56,80.169,80.13,3.41446438]
[1770977881359,101.94,80.168,80.13,3.41446438]
[1770977881863,101.94,80.168,80.131,11.24]
[1770977883762,113.1749,80.168,80.124,11.2409]
[1770977883964,3.41446438,80.16,80.124,11.2409]
[1770977884165,3.41446438,80.17,80.124,11.2409]
[1770977884465,104.3,80.169,80.124,11.2409]
[1770977884869,104.3,80.169,80.13,11.24]
[1770977886965,3.41446438,80.17,80.13,11.24]
[1770977889068,3.41446438,80.17,80.136,7.09722618]
[1770977889267,138.15446438,80.17,80.136,7.09722618]
[1770977889571,3.41446438,80.19,80.141,7.09722618]
[1770977889771,134.8,80.189,80.144,7.10630506]
[1770977889958,3.41446438,80.18,80.144,7.10630506]
[1770977890460,3.41446438,80.18,80.146,11.2378]
[1770977892067,138.59446438,80.18,80.146,11.2378]
[1770977892460,135.18,80.18,80.146,11.2378]
[1770977893372,135.4,80.18,80.146,11.2378]
[1770977893864,135.48,80.179,80.146,11.2378]
[1770977894066,3.41446438,80.19,80.152,11.237]
[1770977894263,105.86,80.189,80.156,11.4629305]
[1770977894469,105.86,80.188,80.156,11.4629305]
[1770977894669,11.2256,80.234,80.177,11.2335]
[1770977894868,3.41446438,80.22,80.17,11.4629305]
[1770977895170,3.41446438,80.2,80.171,11.4629305]
[1770977895371,3.41446438,80.19,80.157,11.4629305]
[1770977895971,3.41446438,80.19,80.153,11.2368]
[1770977896167,3.41446438,80.19,80.153,22.6997305]
[1770977896968,3.41446438,80.19,80.153,11.4629305]
[1770977897171,3.41446438,80.17,80.15,11.4629305]
[1770977897375,3.41446438,80.17,80.139,11.4629305]
[1770977897673,3.41446438,80.18,80.144,11.4629305]
[1770977898075,3.41446438,80.18,80.145,11.4629305]
[1770977899171,3.41446438,80.18,80.146,11.4629305]
[1770977899968,3.62825227,80.18,80.146,11.4629305]
[1770977900169,0.21378789,80.179,80.147,11.4629305]
[1770977900775,3.41446438,80.17,80.147,11.4629305]
[1770977901077,3.41446438,80.17,80.138,11.4629305]
[1770977901271,3.41446438,80.17,80.125,15.37732622]
[1770977901272,3.41446438,80.15,80.113,28.1601743]
[1770977901477,3.41446438,80.15,80.114,12.78284808]
[1770977902373,3.41446438,80.15,80.115,12.79064235]
[1770977902771,101.94,80.158,80.115,12.79064235]
[1770977902972,3.41446438,80.15,80.115,12.79064235]
[1770977905374,3.41446438,80.2,80.148,15.37732622]
[1770977905579,3.41446438,80.2,80.151,11.11647338]
[1770977906279,3.41446438,80.2,80.154,11.2367]
[1770977906982,3.41446438,80.2,80.154,22.14377475]
[1770977909588,3.41446438,80.19,80.154,22.14377475]
[1770977909785,3.41446438,80.19,80.16,11.2358]
[1770977911389,3.41446438,80.2,80.16,11.2358]
[1770977911687,3.41446438,80.19,80.136,15.37732622]
[1770977911893,2.16996839,80.246,80.137,10.88065037]
[1770977911894,3.41446438,80.17,80.137,10.88065037]
[1770977914191,3.41446438,80.18,80.14,11.2387]
[1770977914388,3.41446438,80.18,80.141,10.94862665]
[1770977914586,99.56,80.188,80.141,10.94862665]
[1770977914782,22.4494,80.241,80.151,10.95360854]
[1770977914988,22.4494,80.241,80.15,3.41446438]
[1770977914989,3.41446438,80.19,80.16,10.95360854]
[1770977916388,3.41446438,80.19,80.161,11.2357]
[1770977916689,3.41446438,80.19,80.146,10.96527354]
[1770977916993,3.41446438,80.19,80.154,11.2367]
[1770977918590,3.41446438,80.2,80.167,11.2349]
[1770977921692,11.2293,80.208,80.167,11.2349]
[1770977922295,3.41446438,80.2,80.161,11.2357]
[1770977922501,3.41446438,80.2,80.161,22.18234505]
[1770977922698,3.41446438,80.2,80.161,10.94664505]
[1770977922896,3.41446438,80.2,80.161,22.18234505]
[1770977923497,3.41446438,80.2,80.161,11.2357]
[1770977924002,3.41446438,80.19,80.161,11.2357]
[1770977924200,3.41446438,80.18,80.151,11.237]
[1770977924497,138.38,80.186,80.151,11.237]
[1770977925302,138.5,80.188,80.153,11.2369]
[1770977925693,138.58,80.207,80.161,10.98660003]
[1770977926804,138.58,80.207,80.164,11.00037496]
[1770977927503,3.41446438,80.22,80.171,11.2343]
[1770977927704,99.54,80.219,80.171,22.23467496]
[1770977927904,99.54,80.219,80.172,11.00506629]
[1770977928805,130.9679,80.218,80.172,11.00506629]
[1770977929303,11.2259,80.232,80.186,11.2323]
[1770977929599,3.41446438,80.23,80.186,11.2323]
[1770977930008,2.16965722,80.266,80.2,3.41446438]
[1770977930213,3.41446438,80.27,80.22,3.41446438]
[1770977930414,139.26,80.269,80.22,3.41446438]
[1770977930802,3.41446438,80.25,80.207,11.2292]
[1770977931005,99.54,80.249,80.207,11.2292]
[1770977931206,3.41446438,80.24,80.187,10.95685538]
[1770977931402,3.41446438,80.24,80.2,3.41446438]
[1770977931607,114.98,80.243,80.2,14.37131976]
[1770977932204,122.62,80.242,80.205,11.2295]
[1770977932910,139.64,80.241,80.205,11.2295]
[1770977933415,139.7,80.242,80.206,11.1859306]
[1770977933616,2.16877156,80.296,80.211,22.4146306]
[1770977933617,139.76,80.247,80.211,22.4146306]
[1770977934214,22.4338,80.297,80.23,3.41446438]
[1770977934215,11.2208,80.268,80.23,3.41446438]
[1770977934415,3.41446438,80.27,80.23,3.41446438]
[1770977934613,14.63226438,80.29,80.24,3.41446438]
[1770977934813,6.699e-05,80.274,80.26,3.41446438]
[1770977935006,11.58964165,80.37,80.261,10.80256518]
[1770977935205,11.58964165,80.395,80.3,3.40561408]
[1770977935413,11.58964165,80.395,80.3,14.20817926]
[1770977935414,3.40561408,80.35,80.3,14.20817926]
[1770977935605,174.2714,80.395,80.251,196.79895956]
[1770977935606,3.40561408,80.31,80.266,10.80256518]
[1770977935808,3.40561408,80.31,80.27,3.40561408]
[1770977936312,3.40561408,80.32,80.271,10.80597038]
[1770977937717,3.40561408,80.32,80.271,22.02627038]
[1770977937916,3.40561408,80.32,80.272,11.28112085]
[1770977940423,3.40561408,80.32,80.275,11.01114195]
[1770977940817,3.40561408,80.31,80.275,11.01114195]
[1770977941415,3.40561408,80.32,80.275,11.01114195]
[1770977941917,3.40561408,80.29,80.252,11.02180765]
[1770977942313,3.40561408,80.28,80.237,11.02180765]
[1770977942525,3.40561408,80.27,80.221,11.02180765]
[1770977942712,37.49,80.339,80.24,3.40561408]
[1770977942713,3.40561408,80.28,80.24,3.40561408]
[1770977942918,8.1122213,80.32,80.241,11.03949334]
[1770977943116,8.1122213,80.31,80.241,11.03949334]
[1770977943611,99.46,80.309,80.241,11.03949334]
[1770977944119,8.1122213,80.3,80.241,11.03949334]
[1770977944822,8.1122213,80.3,80.243,10.98741755]
[1770977945416,8.1122213,80.29,80.243,10.98741755]
[1770977945613,8.1122213,80.29,80.232,11.2257]
[1770977946016,37.49,80.359,80.231,10.99090675]
[1770977946327,8.1122213,80.31,80.241,10.99090675]
[1770977946727,99.44,80.309,80.241,10.99090675]
[1770977947123,99.44,80.309,80.256,11.2224]
[1770977947723,110.6552,80.309,80.247,10.93376793]
[1770977948324,11.2116,80.335,80.274,10.93376793]
[1770977948530,8.1122213,80.33,80.274,10.93376793]
[1770977948931,8.1122213,80.32,80.257,10.86869202]
[1770977949124,8.1122213,80.31,80.257,10.86869202]
[1770977949725,8.1122213,80.31,80.26,11.2219]
[1770977950929,11.2153,80.308,80.257,10.86869202]
[1770977951130,8.1122213,80.31,80.257,10.86869202]
[1770977951430,8.1122213,80.32,80.257,10.86869202]
[1770977951630,99.44,80.324,80.277,10.82625032]
[1770977951822,99.44,80.328,80.277,10.82625032]
[1770977952223,112.92,80.329,80.277,10.82625032]
[1770977952429,8.1122213,80.32,80.277,10.82625032]
[1770977952625,126.26,80.329,80.277,10.82625032]
[1770977953029,11.2141,80.316,80.264,11.2213]
[1770977953627,11.2141,80.316,80.264,22.06093586]
[1770977953823,11.2141,80.316,80.266,22.06333225]
[1770977954225,8.1122213,80.32,80.267,10.84233225]
[1770977954425,8.1122213,80.33,80.272,10.84233225]
[1770977955132,8.1122213,80.33,80.283,11.2186]
[1770977955428,11.2124,80.329,80.283,11.2186]
[1770977956433,11.214,80.317,80.272,10.84233225]
[1770977956641,22.4139,80.368,80.272,10.84233225]
[1770977956937,8.1122213,80.33,80.272,10.84233225]
[1770977957125,8.1122213,80.31,80.257,10.94994235]
[1770977957937,8.1122213,80.31,80.261,10.95278813]
[1770977958734,124.18,80.309,80.261,10.95278813]
[1770977959136,8.1122213,80.31,80.261,10.95278813]
[1770977959333,99.42,80.309,80.261,10.95278813]
[1770977959736,11.2161,80.302,80.261,10.95278813]
[1770977961233,11.2173,80.294,80.25,11.06712145]
[1770977964840,3.40738907,80.28,80.25,11.06712145]
[1770977966740,11.2194,80.278,80.25,11.06712145]
[1770977966941,3.40738907,80.27,80.24,11.2247]
[1770977967939,3.40738907,80.27,80.235,11.08957521]
[1770977968742,3.40738907,80.27,80.236,11.2252]
[1770977969241,3.40738907,80.27,80.235,11.08957521]
[1770977969439,3.40738907,80.27,80.207,11.31393176]
[1770977969440,3.40738907,80.31,80.261,8.59162457]
[1770977969835,3.40738907,80.3,80.267,11.2208]
[1770977970141,3.40738907,80.29,80.261,8.59162457]
[1770977971141,3.40738907,80.3,80.261,8.59162457]
[1770977972540,3.40738907,80.3,80.262,11.2216]
[1770977973244,3.40738907,80.31,80.268,9.26114793]
[1770977973545,3.40738907,80.31,80.271,9.26114793]
[1770977974552,9.01648857,80.345,80.291,9.26114793]
[1770977974735,3.40738907,80.32,80.291,9.26114793]
[1770977975245,3.40738907,80.32,80.292,20.05029409]
[1770977975447,3.40738907,80.33,80.293,8.83289409]
[1770977976444,3.40738907,80.33,80.296,8.83289409]
[1770977976947,3.40738907,80.32,80.296,8.83289409]
[1770977977547,3.40738907,80.33,80.298,11.2166]
[1770977977749,3.40738907,80.33,80.298,20.04949409]
[1770977977936,3.40738907,80.33,80.299,8.83289409]
[1770977980249,9.73902457,80.359,80.301,8.83289409]
[1770977980445,3.40738907,80.35,80.301,8.83289409]
[1770977980849,3.40738907,80.35,80.309,11.2149]
[1770977981248,9.73902457,80.358,80.309,11.2149]
[1770977981452,3.40738907,80.34,80.309,11.2149]
[1770977982157,3.40738907,80.35,80.316,8.83289409]
[1770977982450,22.76700469,80.413,80.316,8.83289409]
[1770977982451,3.40738907,80.38,80.331,8.83289409]
[1770977982654,3.40738907,80.37,80.331,8.83289409]
[1770977983152,9.73902457,80.399,80.336,8.83289409]
[1770977983350,3.40738907,80.39,80.341,8.83289409]
[1770977983555,9.73902457,80.399,80.342,8.83289409]
[1770977983556,3.40738907,80.38,80.342,8.83289409]
[1770977983751,9.73902457,80.399,80.342,8.83289409]
[1770977984148,9.73902457,80.369,80.323,8.83289409]
[1770977984358,3.40738907,80.35,80.311,8.83289409]
[1770977984558,3.40738907,80.34,80.301,11.2161]
[1770977984752,9.73902457,80.356,80.301,11.2161]